fUST/lending_fUST_20250530
["ID","MTS","AMOUNT","RATE_DAILY","PERIOD"]
[363019485,1748550632826,-410.14284359,0.00019178,2]
[363019486,1748550633319,500.0,0.0002465,120]
[363019487,1748550633951,500.0,0.0002465,120]
[363019488,1748550635597,500.0,0.0002465,120]
[363019506,1748550637788,-500.0,0.00019177,2]
[363019509,1748550637798,-500.0,0.00019177,2]
[363019511,1748550637807,-500.0,0.00019177,2]
[363019512,1748550637816,-500.0,0.00019177,2]
[363019515,1748550637826,-500.0,0.00019177,2]
[363019516,1748550637835,-500.0,0.00019177,2]
[363019518,1748550637844,-500.0,0.00019177,2]
[363019519,1748550637853,-16.28229565,0.00019177,2]
[363019520,1748550637866,-483.71770435,0.00019177,2]
[363019521,1748550637875,-500.0,0.00019177,2]
[363019522,1748550637885,-500.0,0.00019177,2]
[363019523,1748550637894,-19.85715641,0.00019178,2]
[363019524,1748550637903,-276.06321588,0.00019178,2]
[363019525,1748550637915,-3.91596858,0.00019178,2]
[363019526,1748550637925,-450.0,0.00019178,2]
[363019527,1748550637935,-170.80513191,0.00019178,2]
[363019528,1748550637947,-299.19486809,0.00019178,2]
[363019529,1748550637959,-470.0,0.00019178,2]
[363019530,1748550637967,-470.0,0.00019178,2]
[363019531,1748550637977,-470.0,0.00019178,2]
[363019532,1748550637986,-430.0,0.00019178,2]
[363019533,1748550637995,-470.0,0.00019178,2]
[363019534,1748550638004,-470.0,0.00019178,2]
[363019535,1748550638013,-550.0,0.00019178,2]
[363019536,1748550638022,-470.0,0.00019178,2]
[363019537,1748550638031,-470.0,0.00019178,2]
[363019538,1748550638040,-430.0,0.00019178,2]
[363019539,1748550638049,-0.80513191,0.00019178,2]
[363019540,1748550638061,-469.19486809,0.00019178,2]
[363019541,1748550638071,-470.0,0.00019178,2]
[363019542,1748550638080,-470.0,0.00019178,2]
[363019543,1748550638090,-430.0,0.00019178,2]
[363019544,1748550638099,-470.0,0.00019178,2]
[363019545,1748550638108,-430.0,0.00019178,2]
[363019546,1748550638117,-430.0,0.00019178,2]
[363019547,1748550638127,-470.0,0.00019178,2]
[363019548,1748550638136,-430.0,0.00019178,2]
[363019549,1748550638146,-430.0,0.00019178,2]
[363019550,1748550638155,-470.0,0.00019178,2]
[363019551,1748550638164,-470.0,0.00019178,2]
[363019552,1748550638174,-470.0,0.00019178,2]
[363019553,1748550638183,-430.0,0.00019178,2]
[363019554,1748550638193,-470.0,0.00019178,2]
[363019555,1748550638202,-470.0,0.00019178,2]
[363019556,1748550638211,-470.0,0.00019178,2]
[363019557,1748550638219,-23.37961413,0.00019178,2]
[363019558,1748550638231,-446.62038587,0.00019178,2]
[363019559,1748550638240,-470.0,0.00019178,2]
[363019560,1748550638249,-430.0,0.00019178,2]
[363019561,1748550638259,-430.0,0.00019178,2]
[363019562,1748550638268,-470.0,0.00019178,2]
[363019563,1748550638277,-470.0,0.00019178,2]
[363019564,1748550638286,-470.0,0.00019178,2]
[363019565,1748550638295,-430.0,0.00019178,2]
[363019566,1748550638305,-470.0,0.00019178,2]
[363019567,1748550638314,-470.0,0.00019178,2]
[363019568,1748550638323,-430.0,0.00019178,2]
[363019569,1748550638332,-430.0,0.00019178,2]
[363019570,1748550638342,-430.0,0.00019178,2]
[363019571,1748550638351,-430.0,0.00019178,2]
[363019572,1748550638360,-430.0,0.00019178,2]
[363019573,1748550638370,-430.0,0.00019178,2]
[363019574,1748550638379,-430.0,0.00019178,2]
[363019575,1748550638388,-450.0,0.00019178,2]
[363019576,1748550638398,-470.0,0.00019178,2]
[363019577,1748550638407,-470.0,0.00019178,2]
[363019578,1748550638416,-554.77934354,0.00019178,2]
[363019579,1748550638425,-418.67133647,0.00019178,2]
[363019580,1748550638434,-430.0,0.00019178,2]
[363019581,1748550638444,-430.0,0.00019178,2]
[363019582,1748550638453,-430.0,0.00019178,2]
[363019583,1748550638463,-430.0,0.00019178,2]
[363019584,1748550638472,-430.0,0.00019178,2]
[363019585,1748550638481,-500.0,0.00019178,2]
[363019586,1748550638490,-1087.03,0.00019178,2]
[363019587,1748550638499,-279.0363811,0.00019178,2]
[363019588,1748550638510,-430.0,0.00019178,2]
[363019589,1748550638519,-430.0,0.00019178,2]
[363019590,1748550638528,-430.0,0.00019178,2]
[363019591,1748550638537,-430.0,0.00019178,2]
[363019592,1748550638547,-430.0,0.00019178,2]
[363019593,1748550638556,-430.0,0.00019178,2]
[363019594,1748550638566,-424.66,0.00019178,2]
[363019595,1748550638575,-430.0,0.00019178,2]
[363019596,1748550638584,-430.0,0.00019178,2]
[363019597,1748550638593,-340.0,0.00019178,2]
[363019598,1748550638602,-430.0,0.00019178,2]
[363019599,1748550638611,-430.0,0.00019178,2]
[363019600,1748550638620,-430.0,0.00019178,2]
[363019601,1748550638629,-430.0,0.00019178,2]
[363019602,1748550638639,-430.0,0.00019178,2]
[363019603,1748550638647,-573.27,0.00019178,2]
[363019604,1748550638656,-430.0,0.00019178,2]
[363019605,1748550638665,-430.0,0.00019178,2]
[363019606,1748550638675,-500.0,0.00019178,2]
[363019607,1748550638685,-430.0,0.00019178,2]
[363019608,1748550638694,-430.0,0.00019178,2]
[363019609,1748550638703,-430.0,0.00019178,2]
[363019610,1748550638712,-430.0,0.00019178,2]
[363019611,1748550638721,-550.0,0.00019178,2]
[363019612,1748550638730,-430.0,0.00019178,2]
[363019613,1748550638740,-430.0,0.00019178,2]
[363019614,1748550638749,-430.0,0.00019178,2]
[363019615,1748550638759,-430.0,0.00019178,2]
[363019616,1748550638768,-430.0,0.00019178,2]
[363019617,1748550638778,-430.0,0.00019178,2]
[363019618,1748550638787,-469.72,0.00019178,2]
[363019619,1748550638796,-430.0,0.00019178,2]
[363019620,1748550638807,-430.0,0.00019178,2]
[363019621,1748550638817,-430.0,0.00019178,2]
[363019622,1748550638827,-430.0,0.00019178,2]
[363019623,1748550638835,-430.0,0.00019178,2]
[363019624,1748550638844,-154.42969503,0.00019178,2]
[363019625,1748550638854,-430.0,0.00019178,2]
[363019626,1748550638863,-430.0,0.00019178,2]
[363019627,1748550638873,-430.0,0.00019178,2]
[363019628,1748550638882,-450.0,0.00019178,2]
[363019629,1748550638891,-450.0,0.00019178,2]
[363019630,1748550638900,-430.0,0.00019178,2]
[363019631,1748550638910,-430.0,0.00019178,2]
[363019632,1748550638920,-400.0,0.00019178,2]
[363019633,1748550638930,-430.0,0.00019178,2]
[363019634,1748550638939,-303.41280074,0.00019178,2]
[363019635,1748550638948,-430.0,0.00019178,2]
[363019636,1748550638957,-450.0,0.00019178,2]
[363019637,1748550638966,-484.41,0.00019178,2]
[363019638,1748550638975,-450.0,0.00019178,2]
[363019639,1748550638984,-450.0,0.00019178,2]
[363019640,1748550638994,-450.0,0.00019178,2]
[363019641,1748550639004,-430.0,0.00019178,2]
[363019642,1748550639017,-430.0,0.00019178,2]
[363019643,1748550639027,-430.03,0.00019178,2]
[363019644,1748550639036,-377.29336116,0.00019178,2]
[363019645,1748550639045,-327.52607252,0.00019178,2]
[363019646,1748550639054,-430.0,0.00019178,2]
[363019647,1748550639065,-344.09,0.00019178,2]
[363019648,1748550639074,-430.0,0.00019178,2]
[363019649,1748550639084,-430.0,0.00019178,2]
[363019650,1748550639094,-430.0,0.00019178,2]
[363019651,1748550639103,-245.96963375,0.00019178,2]
[363019652,1748550639112,-360.65536584,0.00019178,2]
[363019653,1748550639121,-430.0,0.00019178,2]
[363019654,1748550639132,-430.0,0.00019178,2]
[363019655,1748550639141,-464.02397394,0.00019178,2]
[363019656,1748550639150,-433.14646771,0.00019178,2]
[363019657,1748550639159,-430.0,0.00019178,2]
[363019658,1748550639168,-430.0,0.00019178,2]
[363019659,1748550639178,-294.08615738,0.00019178,2]
[363019660,1748550639188,-430.0,0.00019178,2]
[363019661,1748550639197,-152.63395759,0.00019178,2]
[363019662,1748550639207,-2767.37,0.00019178,2]
[363019663,1748550639215,-430.0,0.00019178,2]
[363019664,1748550639225,-430.0,0.00019178,2]
[363019665,1748550639234,-430.0,0.00019178,2]
[363019666,1748550639244,-430.0,0.00019178,2]
[363019667,1748550639253,-4397.12,0.00019178,2]
[363019668,1748550639263,-430.0,0.00019178,2]
[363019669,1748550639273,-558.14251133,0.00019178,2]
[363019670,1748550639283,-430.0,0.00019178,2]
[363019671,1748550639291,-430.0,0.00019178,2]
[363019672,1748550639302,-430.0,0.00019178,2]
[363019673,1748550639313,-467.8,0.00019178,2]
[363019674,1748550639322,-4189.56,0.00019178,2]
[363019675,1748550639331,-1518.53,0.00019178,2]
[363019676,1748550639341,-430.0,0.00019178,2]
[363019677,1748550639350,-415.03256498,0.00019178,2]
[363019678,1748550639360,-430.0,0.00019178,2]
[363019679,1748550639369,-863.61,0.00019178,2]
[363019680,1748550639382,-450.44794241,0.00019178,2]
[363019681,1748550639391,-430.0,0.00019178,2]
[363019682,1748550639401,-430.0,0.00019178,2]
[363019683,1748550639410,-430.0,0.00019178,2]
[363019684,1748550639420,-430.0,0.00019178,2]
[363019685,1748550639430,-430.0,0.00019178,2]
[363019686,1748550639439,-430.0,0.00019178,2]
[363019687,1748550639448,-430.0,0.00019178,2]
[363019688,1748550639457,-430.0,0.00019178,2]
[363019690,1748550639467,-430.0,0.00019178,2]
[363019692,1748550639477,-430.0,0.00019178,2]
[363019693,1748550639486,-1058.58,0.00019178,2]
[363019694,1748550639496,-430.0,0.00019178,2]
[363019695,1748550639505,-430.0,0.00019178,2]
[363019696,1748550639515,-1198.14,0.00019178,2]
[363019697,1748550639524,-430.0,0.00019178,2]
[363019698,1748550639533,-1000.0,0.00019178,2]
[363019699,1748550639543,-430.0,0.00019178,2]
[363019700,1748550639552,-420.51233043,0.00019178,2]
[363019701,1748550639562,-401.21561177,0.00019178,2]
[363019702,1748550639572,-430.0,0.00019178,2]
[363019703,1748550639581,-430.0,0.00019178,2]
[363019704,1748550639591,-430.0,0.00019178,2]
[363019705,1748550639600,-4193.84,0.00019178,2]
[363019706,1748550639609,-430.0,0.00019178,2]
[363019707,1748550639619,-430.0,0.00019178,2]
[363019708,1748550639628,-201.0028926,0.00019178,2]
[363019710,1748550639637,-430.0,0.00019178,2]
[363019712,1748550639646,-430.0,0.00019178,2]
[363019714,1748550639656,-430.0,0.00019178,2]
[363019716,1748550639665,-1534.73,0.00019178,2]
[363019717,1748550639675,-2450.36,0.00019178,2]
[363019718,1748550639684,-430.0,0.00019178,2]
[363019719,1748550639694,-430.0,0.00019178,2]
[363019720,1748550639703,-218.09464831,0.00019178,2]
[363019721,1748550639712,-430.0,0.00019178,2]
[363019722,1748550639722,-1581.8,0.00019178,2]
[363019723,1748550639731,-908.34,0.00019178,2]
[363019724,1748550639741,-430.0,0.00019178,2]
[363019725,1748550639750,-430.0,0.00019178,2]
[363019726,1748550639759,-430.0,0.00019178,2]
[363019727,1748550639768,-633.61,0.00019178,2]
[363019728,1748550639778,-430.0,0.00019178,2]
[363019729,1748550639787,-3515.74,0.00019178,2]
[363019730,1748550639797,-430.0,0.00019178,2]
[363019731,1748550639806,-430.0,0.00019178,2]
[363019732,1748550639816,-1854.82,0.00019178,2]
[363019733,1748550639826,-430.0,0.00019178,2]
[363019734,1748550639835,-430.0,0.00019178,2]
[363019735,1748550639844,-430.0,0.00019178,2]
[363019737,1748550639854,-1560.77,0.00019178,2]
[363019739,1748550639980,-430.0,0.00019178,2]
[363019740,1748550639991,-5816.94,0.00019178,2]
[363019741,1748550640001,-3167.94,0.00019178,2]
[363019742,1748550640011,-400.0,0.00019178,2]
[363019743,1748550640023,-430.0,0.00019178,2]
[363019744,1748550640032,-430.0,0.00019178,2]
[363019745,1748550640041,-430.0,0.00019178,2]
[363019746,1748550640051,-430.0,0.00019178,2]
[363019747,1748550640061,-430.0,0.00019178,2]
[363019748,1748550640070,-430.0,0.00019178,2]
[363019749,1748550640079,-570.55,0.00019178,2]
[363019750,1748550640090,-430.0,0.00019178,2]
[363019751,1748550640100,-430.0,0.00019178,2]
[363019752,1748550640109,-430.0,0.00019178,2]
[363019753,1748550640118,-430.0,0.00019178,2]
[363019754,1748550640127,-155.16922581,0.00019178,2]
[363019755,1748550640137,-344.92622124,0.00019178,2]
[363019756,1748550640146,-430.0,0.00019178,2]
[363019757,1748550640155,-430.0,0.00019178,2]
[363019758,1748550640164,-430.0,0.00019178,2]
[363019759,1748550640176,-430.0,0.00019178,2]
[363019760,1748550640186,-430.0,0.00019178,2]
[363019761,1748550640195,-400.0,0.00019178,2]
[363019762,1748550640204,-464.39179376,0.00019178,2]
[363019763,1748550640214,-430.0,0.00019178,2]
[363019764,1748550640223,-401.99410861,0.00019178,2]
[363019765,1748550640232,-1644.46,0.00019178,2]
[363019766,1748550640241,-430.0,0.00019178,2]
[363019767,1748550640252,-399.90149167,0.00019178,2]
[363019768,1748550640261,-490.52,0.00019178,2]
[363019769,1748550640271,-430.0,0.00019178,2]
[363019771,1748550640280,-400.53730689,0.00019178,2]
[363019773,1748550640290,-400.0,0.00019178,2]
[363019775,1748550640300,-202.71169398,0.00019178,2]
[363019776,1748550640309,-430.0,0.00019178,2]
[363019778,1748550640318,-430.0,0.00019178,2]
[363019779,1748550640328,-430.0,0.00019178,2]
[363019780,1748550640337,-430.0,0.00019178,2]
[363019781,1748550640347,-430.0,0.00019178,2]
[363019782,1748550640355,-3205.39,0.00019178,2]
[363019783,1748550640365,-430.0,0.00019178,2]
[363019784,1748550640374,-258.73147071,0.00019178,2]
[363019785,1748550640384,-340.0,0.00019178,2]
[363019786,1748550640394,-430.0,0.00019178,2]
[363019787,1748550640403,-430.0,0.00019178,2]
[363019788,1748550640413,-430.0,0.00019178,2]
[363019789,1748550640424,-430.0,0.00019178,2]
[363019790,1748550640433,-430.0,0.00019178,2]
[363019791,1748550640442,-430.0,0.00019178,2]
[363019792,1748550640452,-420.19644435,0.00019178,2]
[363019793,1748550640461,-430.0,0.00019178,2]
[363019794,1748550640471,-420.39902353,0.00019178,2]
[363019795,1748550640480,-430.0,0.00019178,2]
[363019796,1748550640489,-457.55,0.00019178,2]
[363019797,1748550640499,-924.78,0.00019178,2]
[363019798,1748550640508,-430.0,0.00019178,2]
[363019799,1748550640518,-430.0,0.00019178,2]
[363019800,1748550640527,-430.0,0.00019178,2]
[363019801,1748550640536,-430.0,0.00019178,2]
[363019802,1748550640546,-430.0,0.00019178,2]
[363019803,1748550640555,-502.19397008,0.00019178,2]
[363019804,1748550640564,-430.0,0.00019178,2]
[363019805,1748550640573,-430.0,0.00019178,2]
[363019806,1748550640583,-430.0,0.00019178,2]
[363019807,1748550640592,-318.42043122,0.00019178,2]
[363019808,1748550640602,-430.0,0.00019178,2]
[363019809,1748550640611,-430.0,0.00019178,2]
[363019810,1748550640621,-430.0,0.00019178,2]
[363019811,1748550640630,-771.17,0.00019178,2]
[363019812,1748550640639,-350.0,0.00019178,2]
[363019813,1748550640649,-430.0,0.00019178,2]
[363019814,1748550640660,-430.0,0.00019178,2]
[363019815,1748550640670,-430.0,0.00019178,2]
[363019816,1748550640681,-154.46150892,0.00019178,2]
[363019817,1748550640691,-541.99,0.00019178,2]
[363019818,1748550640700,-452.99351627,0.00019178,2]
[363019819,1748550640710,-430.0,0.00019178,2]
[363019820,1748550640719,-490.06327976,0.00019178,2]
[363019821,1748550640728,-430.0,0.00019178,2]
[363019822,1748550640737,-917.68,0.00019178,2]
[363019823,1748550640747,-301.66022754,0.00019178,2]
[363019824,1748550640756,-430.0,0.00019178,2]
[363019825,1748550640765,-430.0,0.00019178,2]
[363019826,1748550640775,-441.9667806,0.00019178,2]
[363019827,1748550640784,-430.0,0.00019178,2]
[363019828,1748550640793,-450.78185067,0.00019178,2]
[363019829,1748550640802,-430.0,0.00019178,2]
[363019830,1748550640811,-430.0,0.00019178,2]
[363019831,1748550640821,-430.0,0.00019178,2]
[363019832,1748550640830,-418.48210282,0.00019178,2]
[363019833,1748550640840,-403.32077204,0.00019178,2]
[363019834,1748550640849,-430.0,0.00019178,2]
[363019835,1748550640859,-430.0,0.00019178,2]
[363019836,1748550640868,-400.0,0.00019178,2]
[363019837,1748550640877,-430.0,0.00019178,2]
[363019838,1748550640887,-430.0,0.00019178,2]
[363019839,1748550640895,-442.58782504,0.00019178,2]
[363019840,1748550640905,-442.93548135,0.00019178,2]
[363019841,1748550640914,-495.15,0.00019178,2]
[363019842,1748550640926,-430.0,0.00019178,2]
[363019843,1748550640935,-430.0,0.00019178,2]
[363019844,1748550640944,-430.0,0.00019178,2]
[363019845,1748550640954,-588.48,0.00019178,2]
[363019846,1748550640963,-430.0,0.00019178,2]
[363019847,1748550640972,-430.0,0.00019178,2]
[363019848,1748550640981,-521.15,0.00019178,2]
[363019849,1748550640991,-430.0,0.00019178,2]
[363019850,1748550641000,-802.36,0.00019178,2]
[363019851,1748550641010,-430.0,0.00019178,2]
[363019852,1748550641021,-430.0,0.00019178,2]
[363019853,1748550641031,-511.92273979,0.00019178,2]
[363019854,1748550641040,-450.0,0.00019178,2]
[363019855,1748550641049,-430.0,0.00019178,2]
[363019856,1748550641060,-2176.74,0.00019178,2]
[363019857,1748550641069,-2716.3,0.00019178,2]
[363019858,1748550641078,-430.0,0.00019178,2]
[363019859,1748550641088,-430.0,0.00019178,2]
[363019860,1748550641098,-430.0,0.00019178,2]
[363019861,1748550641107,-561.25887746,0.00019178,2]
[363019862,1748550641116,-430.0,0.00019178,2]
[363019863,1748550641125,-430.0,0.00019178,2]
[363019864,1748550641135,-4959.5,0.00019178,2]
[363019865,1748550641144,-430.0,0.00019178,2]
[363019866,1748550641154,-336.25398111,0.00019178,2]
[363019867,1748550641163,-430.0,0.00019178,2]
[363019868,1748550641173,-531.45247399,0.00019178,2]
[363019869,1748550641183,-401.43780266,0.00019178,2]
[363019870,1748550641192,-834.78,0.00019178,2]
[363019871,1748550641201,-300.0,0.00019178,2]
[363019872,1748550641211,-450.0,0.00019178,2]
[363019873,1748550641220,-430.0,0.00019178,2]
[363019874,1748550641229,-430.0,0.00019178,2]
[363019875,1748550641239,-430.0,0.00019178,2]
[363019876,1748550641248,-430.0,0.00019178,2]
[363019877,1748550641258,-430.0,0.00019178,2]
[363019878,1748550641267,-430.0,0.00019178,2]
[363019879,1748550641276,-510.0,0.00019178,2]
[363019880,1748550641285,-181.18667016,0.00019178,2]
[363019881,1748550641294,-154.83445518,0.00019178,2]
[363019882,1748550641304,-430.0,0.00019178,2]
[363019883,1748550641313,-430.0,0.00019178,2]
[363019884,1748550641323,-430.0,0.00019178,2]
[363019885,1748550641332,-430.0,0.00019178,2]
[363019886,1748550641342,-400.0,0.00019178,2]
[363019887,1748550641351,-500.0,0.00019178,2]
[363019888,1748550641361,-500.0,0.00019178,2]
[363019889,1748550641370,-500.0,0.00019178,2]
[363019890,1748550641379,-500.0,0.00019178,2]
[363019891,1748550641389,-468.44649391,0.00019178,2]
[363019892,1748550641399,-500.0,0.00019178,2]
[363019893,1748550641408,-430.0,0.00019178,2]
[363019894,1748550641418,-500.0,0.00019178,2]
[363019895,1748550641429,-430.0,0.00019178,2]
[363019896,1748550641439,-430.0,0.00019178,2]
[363019897,1748550641448,-400.0,0.00019178,2]
[363019898,1748550641458,-430.0,0.00019178,2]
[363019899,1748550641468,-430.0,0.00019178,2]
[363019900,1748550641478,-430.0,0.00019178,2]
[363019901,1748550641487,-430.0,0.00019178,2]
[363019902,1748550641497,-430.0,0.00019178,2]
[363019903,1748550641507,-403.61522114,0.00019178,2]
[363019904,1748550641516,-301.1248116,0.00019178,2]
[363019905,1748550641526,-430.0,0.00019178,2]
[363019906,1748550641535,-151.0,0.00019178,2]
[363019907,1748550641544,-182.2922284,0.00019178,2]
[363019908,1748550641554,-156.587,0.00019233,2]
[363019909,1748550641563,-167.611406,0.00019288,2]
[363019910,1748550641573,-8299.79207783,0.00019329,2]
[363019911,1748550641582,-190.55856551,0.00019352,2]
[363019912,1748550641592,-470.0,0.00019452,2]
[363019913,1748550641601,-430.0,0.00019452,2]
[363019914,1748550641611,-470.0,0.00019452,2]
[363019915,1748550641620,-430.0,0.00019452,2]
[363019916,1748550641630,-470.0,0.00019452,2]
[363019917,1748550641640,-430.0,0.00019452,2]
[363019918,1748550641649,-430.0,0.00019452,2]
[363019919,1748550641658,-470.0,0.00019452,2]
[363019920,1748550641667,-220.0,0.00019452,2]
[363019921,1748550641678,-470.0,0.00019452,2]
[363019922,1748550641687,-470.0,0.00019452,2]
[363019923,1748550641696,-470.0,0.00019452,2]
[363019924,1748550641705,-470.0,0.00019452,2]
[363019925,1748550641715,-470.0,0.00019452,2]
[363019926,1748550641724,-430.0,0.00019452,2]
[363019927,1748550641733,-570.0,0.00019452,2]
[363019928,1748550641742,-341.33601702,0.00019452,2]
[363019929,1748550641751,-470.0,0.00019452,2]
[363019930,1748550641761,-559.96,0.00019452,2]
[363019931,1748550641771,-520.0,0.00019452,2]
[363019932,1748550641781,-470.0,0.00019452,2]
[363019933,1748550641790,-430.0,0.00019452,2]
[363019934,1748550641798,-470.0,0.00019452,2]
[363019935,1748550641808,-470.0,0.00019452,2]
[363019936,1748550641817,-470.0,0.00019452,2]
[363019937,1748550641826,-470.0,0.00019452,2]
[363019938,1748550641836,-470.0,0.00019452,2]
[363019939,1748550641845,-470.0,0.00019452,2]
[363019940,1748550641854,-470.0,0.00019452,2]
[363019941,1748550641863,-470.0,0.00019452,2]
[363019942,1748550641873,-490.0,0.00019452,2]
[363019943,1748550641882,-446.59,0.00019452,2]
[363019944,1748550641891,-430.0,0.00019452,2]
[363019945,1748550641900,-470.0,0.00019452,2]
[363019946,1748550641910,-470.0,0.00019452,2]
[363019947,1748550641919,-470.0,0.00019452,2]
[363019948,1748550641929,-470.0,0.00019452,2]
[363019949,1748550641938,-470.0,0.00019452,2]
[363019950,1748550641949,-470.0,0.00019452,2]
[363019951,1748550641958,-470.0,0.00019452,2]
[363019952,1748550641967,-430.0,0.00019452,2]
[363019953,1748550641977,-430.0,0.00019452,2]
[363019954,1748550641986,-276.70956453,0.00019452,2]
[363019955,1748550641995,-320.0,0.00019452,2]
[363019956,1748550642004,-430.0,0.00019452,2]
[363019957,1748550642016,-500.0,0.00019452,2]
[363019958,1748550642025,-1087.03,0.00019452,2]
[363019959,1748550642034,-430.0,0.00019452,2]
[363019960,1748550642043,-430.0,0.00019452,2]
[363019961,1748550642052,-430.0,0.00019452,2]
[363019962,1748550642062,-385.57517533,0.00019452,2]
[363019963,1748550642071,-430.0,0.00019452,2]
[363019964,1748550642080,-430.0,0.00019452,2]
[363019965,1748550642090,-470.0,0.00019452,2]
[363019966,1748550642101,-573.27,0.00019452,2]
[363019967,1748550642111,-430.0,0.00019452,2]
[363019968,1748550642120,-430.0,0.00019452,2]
[363019969,1748550642129,-430.0,0.00019452,2]
[363019970,1748550642138,-430.0,0.00019452,2]
[363019971,1748550642147,-430.0,0.00019452,2]
[363019972,1748550642156,-430.0,0.00019452,2]
[363019973,1748550642165,-469.72,0.00019452,2]
[363019974,1748550642175,-430.0,0.00019452,2]
[363019975,1748550642184,-430.0,0.00019452,2]
[363019976,1748550642193,-470.0,0.00019452,2]
[363019977,1748550642203,-430.0,0.00019452,2]
[363019978,1748550642213,-430.03,0.00019452,2]
[363019979,1748550642223,-430.0,0.00019452,2]
[363019980,1748550642233,-430.0,0.00019452,2]
[363019981,1748550642243,-430.0,0.00019452,2]
[363019982,1748550642253,-430.0,0.00019452,2]
[363019983,1748550642262,-430.0,0.00019452,2]
[363019984,1748550642272,-2767.37,0.00019452,2]
[363019985,1748550642281,-430.0,0.00019452,2]
[363019986,1748550642290,-430.0,0.00019452,2]
[363019987,1748550642299,-4397.12,0.00019452,2]
[363019988,1748550642309,-450.0,0.00019452,2]
[363019989,1748550642319,-430.0,0.00019452,2]
[363019990,1748550642328,-4189.56,0.00019452,2]
[363019991,1748550642338,-1518.53,0.00019452,2]
[363019992,1748550642347,-863.61,0.00019452,2]
[363019993,1748550642357,-430.0,0.00019452,2]
[363019994,1748550642366,-430.0,0.00019452,2]
[363019995,1748550642376,-430.0,0.00019452,2]
[363019996,1748550642385,-430.0,0.00019452,2]
[363019997,1748550642395,-430.0,0.00019452,2]
[363019998,1748550642404,-1058.58,0.00019452,2]
[363019999,1748550642414,-430.0,0.00019452,2]
[363020000,1748550642423,-1198.14,0.00019452,2]
[363020001,1748550642432,-430.0,0.00019452,2]
[363020002,1748550642441,-176.03719033,0.00019452,2]
[363020004,1748550642450,-450.0,0.00019452,2]
[363020010,1748550642557,-430.0,0.00019452,2]
[363020011,1748550642567,-430.0,0.00019452,2]
[363020012,1748550642576,-4193.84,0.00019452,2]
[363020013,1748550642585,-430.0,0.00019452,2]
[363020014,1748550642594,-1534.73,0.00019452,2]
[363020015,1748550642604,-2450.36,0.00019452,2]
[363020016,1748550642614,-430.0,0.00019452,2]
[363020017,1748550642623,-430.0,0.00019452,2]
[363020018,1748550642632,-1581.8,0.00019452,2]
[363020019,1748550642642,-908.34,0.00019452,2]
[363020020,1748550642652,-430.0,0.00019452,2]
[363020021,1748550642660,-633.61,0.00019452,2]
[363020022,1748550642670,-3515.74,0.00019452,2]
[363020023,1748550642680,-430.0,0.00019452,2]
[363020024,1748550642689,-1854.82,0.00019452,2]
[363020025,1748550642699,-1560.77,0.00019452,2]